bitfinex/quotes_BTCUSD_20241123
["timestamp","ask_amount","ask_price","bid_price","bid_amount"]
[1732376024422,0.15319507,98459.0,98458.0,0.15]
[1732376025123,0.15319507,98459.0,98452.0,0.0008602]
[1732376026689,0.10369507,98459.0,98452.0,0.0008602]
[1732376029030,0.10369507,98459.0,98452.0,0.00037689]
[1732376029242,0.10369507,98459.0,98458.0,0.15]
[1732376030173,0.10369507,98459.0,98452.0,0.00037689]
[1732376032235,0.10369507,98459.0,98453.0,0.03286133]
[1732376033347,0.002,98454.0,98453.0,0.03286133]
[1732376033571,0.1333,98453.0,98452.0,0.00037689]
[1732376033784,0.23531427,98453.0,98452.0,0.00037689]
[1732376038418,0.23331427,98453.0,98452.0,0.00037689]
[1732376038660,0.23531427,98453.0,98452.0,0.00037689]
[1732376039397,0.002,98450.0,98443.0,0.0008604]
[1732376039607,0.0829,98448.0,98443.0,0.0008604]
[1732376039832,0.10201427,98447.0,98443.0,0.0008604]
[1732376042774,0.10201427,98447.0,98443.0,0.04127175]
[1732376042992,0.10201427,98447.0,98443.0,0.0008604]
[1732376043674,0.10201427,98447.0,98444.0,0.23000455]
[1732376044557,0.0017204,98459.0,98444.0,0.23000455]
[1732376044802,0.10201427,98458.0,98451.0,0.15]
[1732376045016,0.10201427,98458.0,98451.0,0.64228492]
[1732376045232,0.10201427,98458.0,98454.0,0.15]
[1732376046597,0.10201427,98458.0,98453.0,0.64228492]
[1732376047685,0.0017204,98459.0,98453.0,0.64228492]
[1732376047923,0.0017204,98459.0,98444.0,0.046]
[1732376048139,0.0017204,98459.0,98445.0,0.023]
[1732376048816,0.0017204,98459.0,98445.0,0.03370788]
[1732376049040,0.0017204,98459.0,98447.0,0.023]
[1732376049248,0.0017204,98459.0,98449.0,0.023]
[1732376049486,0.0017204,98459.0,98450.0,0.0458]
[1732376049724,0.0017204,98459.0,98450.0,0.07950788]
[1732376049952,0.0017204,98459.0,98450.0,0.22950788]
[1732376050588,0.0017204,98459.0,98451.0,0.1958]
[1732376050798,0.0017204,98459.0,98452.0,0.023]
[1732376051016,0.0017204,98459.0,98454.0,0.1032]
[1732376051462,0.0017204,98459.0,98456.0,0.023]
[1732376052850,0.0017204,98459.0,98453.0,0.0458]
[1732376053495,0.0017204,98459.0,98448.0,0.023]
[1732376054157,0.0017204,98459.0,98447.0,0.023]
[1732376054372,0.0017204,98459.0,98450.0,0.023]
[1732376054619,0.0017204,98459.0,98451.0,0.03099664]
[1732376055721,0.0017204,98459.0,98453.0,0.15]
[1732376055934,0.0017204,98459.0,98442.0,0.00101565]
[1732376056919,0.0017204,98459.0,98456.0,0.30662453]
[1732376057164,0.0017204,98459.0,98430.0,0.52045959]
[1732376057388,0.0017204,98459.0,98458.0,0.30661493]
[1732376057613,0.0017204,98459.0,98438.0,0.13042786]
[1732376057837,0.0017204,98459.0,98439.0,0.15]
[1732376058094,0.0017204,98459.0,98440.0,0.02841359]
[1732376058317,0.0017204,98459.0,98441.0,0.023]
[1732376058531,0.0017204,98459.0,98442.0,0.02841359]
[1732376058764,0.0017204,98459.0,98443.0,0.0805]
[1732376058984,0.0017204,98459.0,98444.0,0.2229]
[1732376060360,0.0017204,98459.0,98444.0,0.00190632]
[1732376060578,0.0017204,98459.0,98443.0,0.0314603]
[1732376061490,0.00102176,98459.0,98443.0,0.0314603]
[1732376062430,0.00102176,98459.0,98437.0,0.19092653]
[1732376062659,0.00102176,98459.0,98457.0,0.3064234]
[1732376063142,0.00102176,98459.0,98458.0,0.15]
[1732376063655,0.0017212,98465.0,98458.0,0.4564234]
[1732376063901,0.0017212,98465.0,98460.0,0.15]
[1732376064852,0.04299791,98475.0,98460.0,0.15]
[1732376065131,0.10201427,98474.0,98462.0,0.15]
[1732376065858,0.10201427,98474.0,98467.0,0.15]
[1732376066106,0.10201427,98474.0,98472.0,0.15]
[1732376066387,0.10201427,98474.0,98472.0,0.4564234]
[1732376066609,0.10201427,98474.0,98472.0,0.15]
[1732376067293,0.10201427,98474.0,98458.0,0.0407353]
[1732376067294,0.0494,98473.0,98469.0,0.4564234]
[1732376067960,0.0796,98472.0,98469.0,0.4564234]
[1732376068200,0.0796,98472.0,98469.0,0.15]
[1732376068895,0.0796,98472.0,98469.0,0.4564234]
[1732376069109,0.0796,98472.0,98469.0,0.15]
[1732376069329,0.0796,98472.0,98468.0,0.15]
[1732376069800,0.0796,98472.0,98466.0,0.15]
[1732376070468,0.0796,98472.0,98471.0,0.4564234]
[1732376070711,0.0796,98472.0,98471.0,0.15]
[1732376071166,0.0796,98472.0,98471.0,0.4564234]
[1732376071380,0.10201427,98474.0,98471.0,0.15]
[1732376071601,0.10201427,98474.0,98460.0,0.0384]
[1732376072047,0.10373487,98474.0,98460.0,0.0384]
[1732376072285,0.10373487,98474.0,98473.0,0.15]
[1732376073167,0.10373487,98474.0,98463.0,0.492046]
[1732376073168,0.10373487,98474.0,98463.0,0.15]
[1732376073852,0.047,98473.0,98463.0,0.15]
[1732376074322,0.0762,98472.0,98462.0,0.15]
[1732376074539,0.0762,98472.0,98462.0,0.642046]
[1732376075000,0.0762,98472.0,98461.0,0.15]
[1732376076094,0.0762,98472.0,98462.0,0.15]
[1732376076529,0.10373487,98474.0,98462.0,0.15]
[1732376076973,0.10373487,98474.0,98462.0,0.68644723]
[1732376077188,0.10373487,98474.0,98462.0,0.15]
[1732376077869,0.10373487,98474.0,98462.0,0.68644723]
[1732376078102,0.0017206,98474.0,98463.0,0.02706124]
[1732376078317,0.0658186,98479.0,98472.0,0.15]
[1732376078536,0.0658186,98479.0,98474.0,0.15]
[1732376079912,0.0658186,98479.0,98474.0,0.64064744]
[1732376080135,0.0658186,98479.0,98475.0,0.49064744]
[1732376080562,0.0658186,98479.0,98476.0,0.15]
[1732376080783,0.0658186,98479.0,98476.0,0.64064744]
[1732376081009,0.0658186,98479.0,98476.0,0.15]
[1732376081892,0.0658186,98479.0,98477.0,0.30588007]
[1732376082108,0.0658186,98479.0,98476.0,0.30588007]
[1732376082335,0.0658186,98479.0,98477.0,0.30588007]
[1732376082543,0.0658186,98479.0,98478.0,0.30588007]
[1732376082775,0.0658186,98479.0,98476.0,0.30588007]
[1732376082987,0.0658186,98479.0,98478.0,0.30588007]
[1732376083202,0.0658186,98479.0,98461.0,0.0384]
[1732376083861,0.0658186,98479.0,98478.0,0.45598048]
[1732376084080,0.0658186,98479.0,98478.0,0.15]
[1732376084985,0.0658186,98479.0,98461.0,0.0384]
[1732376085661,0.0658186,98479.0,98471.0,0.00086]
[1732376086101,0.0675386,98479.0,98471.0,0.00086]
[1732376086787,0.06001023,98479.0,98471.0,0.00086]
[1732376093250,0.06001023,98479.0,98471.0,0.04203773]
[1732376093475,0.06001023,98479.0,98471.0,0.00086]
[1732376096925,0.06001023,98479.0,98478.0,0.53644723]
[1732376097179,0.06001023,98479.0,98478.0,0.68644723]
[1732376097403,0.06001023,98479.0,98478.0,0.15]
[1732376098308,0.06001023,98479.0,98471.0,0.00086]
[1732376100223,0.05245763,98479.0,98471.0,0.15086]
[1732376102072,0.05245763,98479.0,98471.0,0.68741663]
[1732376103473,0.05245763,98479.0,98473.0,0.15]
[1732376104455,0.05245763,98479.0,98473.0,0.68655663]
[1732376104664,0.05245763,98479.0,98473.0,0.15]
[1732376105398,0.05245763,98479.0,98473.0,0.68655663]
[1732376106119,0.05245763,98479.0,98471.0,0.00086]
[1732376107445,0.05245763,98479.0,98466.0,0.04108774]
[1732376107888,0.05245763,98479.0,98463.0,0.30787598]
[1732376108102,0.05245763,98479.0,98456.0,0.0797]
[1732376108580,0.10253347,98507.0,98463.0,0.24746653]
[1732376108799,0.0017216,98517.0,98465.0,0.15]
[1732376108800,0.10201427,98496.0,98465.0,0.15]
[1732376108986,0.10201427,98496.0,98467.0,0.15]
[1732376109207,0.10201427,98496.0,98468.0,0.0254188]
[1732376109661,0.11190007,98496.0,98468.0,0.0254188]
[1732376111071,0.11190007,98496.0,98468.0,0.02526354]
[1732376111289,0.11190007,98496.0,98468.0,0.00086]
[1732376111498,0.1292,98495.0,98468.0,0.00086]
[1732376111710,0.0473,98494.0,98468.0,0.00086]
[1732376112345,0.0473,98494.0,98481.0,0.15]
[1732376113501,0.0473,98494.0,98479.0,0.15]
[1732376114228,0.03973968,98494.0,98479.0,0.15]
[1732376114652,0.03973968,98494.0,98478.0,0.15]
[1732376115558,0.03973968,98494.0,98477.0,0.15]
[1732376115775,0.0819,98493.0,98477.0,0.15]
[1732376116004,0.0819,98493.0,98485.0,0.15]
[1732376117376,0.0473,98492.0,98471.0,0.15]
[1732376117588,0.0473,98492.0,98470.0,0.15]
[1732376117845,0.10201427,98491.0,98470.0,0.15]
[1732376118063,0.18391427,98491.0,98490.0,0.15]
[1732376118277,0.18391427,98491.0,98479.0,0.49175556]
[1732376118278,0.10253347,98486.0,98479.0,0.49175556]
[1732376118528,0.10201427,98485.0,98481.0,0.49186946]
[1732376118772,0.10201427,98485.0,98480.0,0.49186946]
[1732376118994,0.10201427,98485.0,98481.0,0.49186946]
[1732376119642,0.10201427,98485.0,98482.0,0.15]
[1732376120771,0.0473,98484.0,98482.0,0.15]
[1732376120980,0.10201427,98483.0,98482.0,0.15]
[1732376121286,0.14931427,98483.0,98482.0,0.15]
[1732376121737,0.23121427,98483.0,98482.0,0.15]
[1732376122418,0.33374774,98483.0,98482.0,0.15]
[1732376122643,0.33374774,98483.0,98475.0,0.49186946]
[1732376122644,0.10253347,98476.0,98475.0,0.49186946]
[1732376122886,0.10253347,98473.0,98472.0,0.49186946]
[1732376123107,0.10253347,98471.0,98468.0,0.04168815]
[1732376123325,0.1292,98469.0,98468.0,0.04168815]
[1732376123532,0.23121427,98469.0,98468.0,0.04168815]
[1732376132119,0.33374774,98469.0,98468.0,0.04168815]
[1732376132340,0.33283161,98469.0,98468.0,0.53302845]
[1732376132556,0.33283161,98469.0,98468.0,0.68302845]
[1732376132790,0.33283161,98469.0,98468.0,0.19168815]
[1732376133214,0.33283161,98469.0,98468.0,0.04168815]
[1732376133428,0.33483161,98469.0,98468.0,0.04168815]
[1732376133717,0.35783161,98469.0,98468.0,0.04168815]
[1732376133938,0.18473347,98450.0,98449.0,0.4913403]
[1732376134271,0.18473347,98446.0,98445.0,0.49128165]
[1732376134508,0.18473347,98443.0,98436.0,0.0017206]
[1732376134733,0.10201427,98442.0,98436.0,0.0017206]
[1732376135404,0.14711427,98442.0,98436.0,0.0017206]
[1732376136412,0.14711427,98442.0,98441.0,0.04138102]
[1732376136641,0.14711427,98442.0,98441.0,0.0008603]
[1732376140815,0.14711427,98442.0,98441.0,0.04285191]
[1732376141550,0.22931427,98442.0,98441.0,0.04285191]
[1732376154262,0.22931427,98442.0,98441.0,0.49813502]
[1732376155169,0.22931427,98442.0,98441.0,0.19285191]
[1732376155849,0.22931427,98442.0,98441.0,0.49813502]
[1732376156132,0.22931427,98442.0,98441.0,0.19285191]
[1732376157497,0.22931427,98442.0,98441.0,0.49819772]
[1732376158183,0.22931427,98442.0,98441.0,0.04285191]
[1732376163578,0.22931427,98442.0,98436.0,0.0017206]
[1732376163771,0.22931427,98442.0,98424.0,0.02409433]
[1732376165191,0.22931427,98442.0,98424.0,0.06589155]
[1732376165405,0.22931427,98442.0,98424.0,0.02409433]
[1732376168389,0.22931427,98442.0,98424.0,0.01909433]
[1732376169725,0.22931427,98442.0,98423.0,0.0017212]
[1732376170667,0.22497127,98442.0,98423.0,0.0017212]
[1732376172429,0.22497127,98442.0,98423.0,0.1517212]
[1732376173570,0.22497127,98442.0,98426.0,0.15]
[1732376173812,0.22497127,98442.0,98431.0,0.15]
[1732376174055,0.22497127,98442.0,98425.0,0.49227812]
[1732376174289,0.22497127,98442.0,98424.0,0.49227812]
[1732376174504,0.22497127,98442.0,98426.0,0.49227812]
[1732376174944,0.22497127,98442.0,98423.0,0.0017212]
[1732376174945,0.22497127,98442.0,98425.0,0.49227812]
[1732376175381,0.22497127,98442.0,98426.0,0.49227812]
[1732376175598,0.22497127,98442.0,98425.0,0.49227812]
[1732376176486,0.22497127,98442.0,98427.0,0.15]
[1732376177388,0.22497127,98442.0,98430.0,0.15]
[1732376178533,0.22497127,98442.0,98430.0,0.64227812]
[1732376179019,0.22497127,98442.0,98432.0,0.15]
[1732376179457,0.22497127,98442.0,98434.0,0.15]
[1732376179683,0.22497127,98442.0,98434.0,0.64227812]
[1732376179898,0.22497127,98442.0,98434.0,0.15]
[1732376180137,0.22497127,98442.0,98434.0,0.64227812]
[1732376180582,0.22497127,98442.0,98435.0,0.15]
[1732376181483,0.14277127,98442.0,98435.0,0.15]
[1732376181750,0.048,98449.0,98440.0,0.15]
[1732376181969,0.10201427,98448.0,98442.0,0.15]
[1732376182867,0.10201427,98448.0,98442.0,0.64227812]
[1732376183328,0.10201427,98448.0,98442.0,0.15]
[1732376183549,0.10201427,98448.0,98445.0,0.15]
[1732376183769,0.10201427,98448.0,98445.0,0.49227812]
[1732376183989,0.10201427,98448.0,98447.0,0.15]
[1732376184676,0.20454774,98448.0,98447.0,0.15]
[1732376185128,0.20454774,98448.0,98433.0,0.15]
[1732376185612,0.20454774,98448.0,98432.0,0.15]
[1732376186077,0.20454774,98448.0,98430.0,0.15]
[1732376186553,0.10201427,98448.0,98429.0,0.73202353]
[1732376186780,0.10201427,98448.0,98433.0,0.15]
[1732376187001,0.10201427,98448.0,98433.0,0.73202353]
[1732376187229,0.10201427,98448.0,98433.0,0.15]
[1732376187661,0.10201427,98448.0,98434.0,0.00101575]
[1732376188361,0.0099593,98453.0,98437.0,0.58202353]
[1732376188578,0.0099593,98453.0,98441.0,0.15]
[1732376188801,0.0457,98460.0,98441.0,0.15]
[1732376189026,0.10201427,98459.0,98441.0,0.15]
[1732376189259,0.10201427,98459.0,98442.0,0.00101565]
[1732376189699,0.10201427,98459.0,98443.0,0.15]
[1732376189930,0.10201427,98459.0,98444.0,0.00101565]
[1732376190159,0.10201427,98459.0,98447.0,0.15]
[1732376190384,0.0457,98460.0,98445.0,0.15]
[1732376191099,0.0457,98460.0,98446.0,0.023]
[1732376191543,0.0457,98460.0,98444.0,0.023]
[1732376192488,0.10201427,98459.0,98443.0,0.023]
[1732376193619,0.10201427,98459.0,98442.0,0.023]
[1732376194838,0.10201427,98459.0,98455.0,0.53675698]
[1732376195068,0.10201427,98459.0,98456.0,0.15]
[1732376195284,0.10201427,98459.0,98457.0,0.15]
[1732376195725,0.10201427,98459.0,98457.0,0.68675698]
[1732376195970,0.10201427,98459.0,98457.0,0.15]
[1732376196215,0.10201427,98459.0,98457.0,0.68675698]
[1732376196430,0.0098791,98476.0,98457.0,0.15]
[1732376196666,0.15031427,98467.0,98459.0,0.15]
[1732376196934,0.0017202,98468.0,98461.0,0.15]
[1732376197174,0.0017202,98468.0,98461.0,0.68675698]
[1732376197401,0.0017202,98468.0,98463.0,0.15]
[1732376197622,0.1279,98467.0,98463.0,0.15]
[1732376198755,0.1279,98467.0,98442.0,0.1053]
[1732376201038,0.1378603,98467.0,98439.0,0.15]
[1732376201256,0.1378603,98467.0,98440.0,0.023]
[1732376201913,0.1378603,98467.0,98439.0,0.15]
[1732376201914,0.1378603,98467.0,98442.0,0.023]
[1732376202171,0.1378603,98467.0,98444.0,0.173]
[1732376202831,0.0483,98476.0,98448.0,0.023]
[1732376203046,0.0099427,98467.0,98448.0,0.173]
[1732376203266,0.0483,98476.0,98448.0,0.173]
[1732376205981,0.0783,98475.0,98448.0,0.173]
[1732376206650,0.0881262,98475.0,98448.0,0.173]
[1732376209560,0.0881262,98475.0,98448.0,0.21495744]
[1732376210277,0.0881262,98475.0,98449.0,0.00101546]
[1732376210515,0.0098262,98475.0,98451.0,0.3006]
[1732376210736,0.06793528,98482.0,98454.0,0.173]
[1732376211002,0.06793528,98482.0,98455.0,0.10201427]
[1732376211224,0.06793528,98482.0,98457.0,0.023]
[1732376211873,0.07790938,98482.0,98457.0,0.023]
[1732376213401,0.0454,98480.0,98452.0,0.173]
[1732376213629,0.14741427,98480.0,98452.0,0.173]
[1732376214284,0.0454,98477.0,98452.0,0.173]
[1732376214512,0.0454,98477.0,98452.0,0.023]
[1732376214725,0.0454,98477.0,98449.0,0.023]
[1732376214963,0.0454,98477.0,98450.0,0.15]
[1732376215402,0.0454,98474.0,98446.0,0.04039636]
[1732376215621,0.0454,98472.0,98446.0,0.04039636]
[1732376215907,0.0454,98472.0,98443.0,0.18191427]
[1732376217042,0.0454,98472.0,98444.0,0.15]
[1732376217291,0.0454,98472.0,98445.0,0.00101549]
[1732376217994,0.0454,98472.0,98444.0,0.15]
[1732376218903,0.0454,98472.0,98445.0,0.15072976]
[1732376219140,0.0454,98472.0,98446.0,0.15]
[1732376219363,0.0454,98472.0,98453.0,0.15]
[1732376219599,0.0454,98472.0,98454.0,0.10201427]
[1732376219829,0.0454,98472.0,98455.0,0.15]
[1732376222501,0.0454,98472.0,98445.0,0.00086]
[1732376222739,0.0454,98472.0,98447.0,0.15]
[1732376224300,0.0882584,98473.0,98447.0,0.15]
[1732376224301,0.08605393,98473.0,98448.0,0.0482]
[1732376224517,0.07588014,98473.0,98448.0,0.04921547]
[1732376225391,0.07588014,98473.0,98449.0,0.15]
[1732376225603,0.07588014,98473.0,98450.0,0.00101547]
[1732376226037,0.07252972,98473.0,98452.0,0.15]
[1732376226732,0.00172,98496.0,98453.0,0.45171427]
[1732376226949,0.0098053,98473.0,98457.0,0.173]
[1732376227166,0.10373407,98492.0,98458.0,0.10302958]
[1732376227385,0.0456,98491.0,98459.0,0.15]
[1732376227595,0.0456,98491.0,98460.0,0.10302957]
[1732376228048,0.0456,98491.0,98461.0,0.15]
[1732376228256,0.0456,98491.0,98462.0,0.1510153]
[1732376229151,0.0798,98490.0,98462.0,0.1510153]
[1732376231142,0.0798,98490.0,98463.0,0.0499]
[1732376231358,0.0798,98490.0,98464.0,0.00101531]
[1732376232516,0.0798,98490.0,98465.0,0.0784]
[1732376232733,0.0798,98490.0,98466.0,0.00101529]
[1732376232963,0.0798,98490.0,98467.0,0.00101529]
[1732376233604,0.07125208,98490.0,98467.0,0.00101529]
[1732376234259,0.07297248,98490.0,98467.0,0.00101529]
[1732376234469,0.06031532,98490.0,98467.0,0.00101529]
[1732376235158,0.04726335,98490.0,98467.0,0.00101529]
[1732376235374,0.04389504,98490.0,98467.0,0.00101529]
[1732376235584,0.04389504,98490.0,98464.0,0.11385875]
[1732376238292,0.0456,98491.0,98466.0,0.15]
[1732376238521,0.0456,98491.0,98467.0,0.00101526]
[1732376238735,0.0456,98491.0,98468.0,0.00101526]
[1732376239242,0.0456,98491.0,98469.0,0.01379772]
[1732376239456,0.0456,98491.0,98470.0,0.00101526]
[1732376240106,0.00352623,98491.0,98471.0,0.0479]
[1732376240358,0.0017198,98492.0,98472.0,0.00101523]
[1732376240589,0.0017198,98492.0,98473.0,0.00101523]
[1732376241549,0.0017198,98492.0,98472.0,0.00101526]
[1732376242961,0.0017198,98492.0,98471.0,0.0479]
[1732376244781,0.0017198,98492.0,98469.0,0.01379772]
[1732376244782,0.0017198,98492.0,98463.0,0.0826]
[1732376245016,0.0017198,98492.0,98464.0,0.10201427]
[1732376245239,0.0482,98491.0,98464.0,0.10201427]
[1732376245455,0.04555352,98491.0,98464.0,0.15151427]
[1732376247118,0.04555352,98491.0,98465.0,0.15]
[1732376250961,0.088849,98493.0,98465.0,0.15]
[1732376254056,0.0476,98492.0,98465.0,0.15]
[1732376260763,0.0476,98492.0,98469.0,0.15]
[1732376261879,0.0476,98492.0,98465.0,0.15]
[1732376262111,0.0476,98492.0,98466.0,0.023]
[1732376262414,0.0476,98492.0,98465.0,0.1508599]
[1732376263343,0.14961427,98492.0,98465.0,0.023]
[1732376266024,0.10201427,98491.0,98464.0,0.0008601]
[1732376266247,0.127,98490.0,98464.0,0.0008601]
[1732376266480,0.0115688,98493.0,98464.0,0.0008601]
[1732376266481,0.22901427,98489.0,98464.0,0.0008601]
[1732376272952,0.22901427,98489.0,98466.0,0.15]
[1732376273940,0.17981427,98489.0,98467.0,0.0474]
[1732376274921,0.17981427,98489.0,98467.0,0.0474]
[1732376275584,0.17981427,98489.0,98465.0,0.00168922]
[1732376275831,0.17981427,98489.0,98465.0,0.15168922]
[1732376276087,0.18153447,98489.0,98466.0,0.00101533]
[1732376276339,0.18153447,98489.0,98465.0,0.00168922]
[1732376278766,0.0473,98488.0,98466.0,0.0475]
[1732376279002,0.10201427,98487.0,98466.0,0.0475]
[1732376279755,0.11191617,98487.0,98466.0,0.0475]
[1732376281213,0.11191617,98487.0,98456.0,0.0138846]
[1732376281443,0.0099019,98487.0,98457.0,0.10201427]
[1732376281919,0.0473,98486.0,98457.0,0.10201427]
[1732376282168,0.04421628,98486.0,98458.0,0.0475]
[1732376282409,0.04421628,98486.0,98458.0,0.14951427]
[1732376283601,0.04421628,98486.0,98459.0,0.15]
[1732376283830,0.04331824,98486.0,98459.0,0.15]
[1732376285286,0.0781,98485.0,98459.0,0.15]
[1732376287005,0.0486,98484.0,98459.0,0.15]
[1732376288662,0.0781,98483.0,98459.0,0.15]
[1732376289167,0.00043808,98464.0,98459.0,0.15]
[1732376291530,0.0781,98483.0,98459.0,0.15]
[1732376291754,0.0473,98482.0,98476.0,0.15]
[1732376292250,0.0473,98482.0,98476.0,0.68728458]
[1732376292471,0.1278,98481.0,98476.0,0.68728458]
[1732376292688,0.0473,98480.0,98476.0,0.68728458]
[1732376293702,0.03092558,98480.0,98476.0,0.68728458]
[1732376293955,0.03092558,98480.0,98476.0,0.15]
[1732376294198,0.0805,98485.0,98476.0,0.15]
[1732376294450,0.0805,98483.0,98471.0,0.15]
[1732376294904,0.0805,98483.0,98470.0,0.15]
[1732376296722,0.0473,98482.0,98470.0,0.19161237]
[1732376296976,0.0805,98481.0,98470.0,0.19161237]
[1732376297219,0.0805,98479.0,98470.0,0.19161237]
[1732376297455,0.0473,98478.0,98470.0,0.19161237]
[1732376298688,0.0473,98478.0,98470.0,0.57889695]
[1732376298909,0.0473,98478.0,98471.0,0.15]
[1732376299129,0.04027437,98478.0,98471.0,0.15]
[1732376300085,0.0805,98477.0,98470.0,0.04161237]
[1732376300551,0.07916807,98477.0,98469.0,0.15]
[1732376301300,0.0017198,98486.0,98468.0,0.57869141]
[1732376301301,0.09693872,98476.0,98468.0,0.04140683]
[1732376301745,0.09693872,98476.0,98460.0,0.53728458]
[1732376301974,0.0959234,98476.0,98458.0,0.53814448]
[1732376302192,0.0473,98475.0,98459.0,0.00101553]
[1732376302413,0.00101532,98479.0,98459.0,0.00101553]
[1732376302414,0.0473,98473.0,98460.0,0.15]
[1732376302634,0.0473,98471.0,98459.0,0.15]
[1732376302873,0.0473,98471.0,98470.0,0.0008599]
[1732376303622,0.1278,98471.0,98470.0,0.0008599]
[1732376305257,0.12511436,98471.0,98470.0,0.0008599]
[1732376305497,0.11812757,98471.0,98470.0,0.0008599]
[1732376306651,0.22014184,98471.0,98470.0,0.0008599]
[1732376312684,0.22014184,98471.0,98470.0,0.04115509]
[1732376313148,0.22014184,98471.0,98470.0,0.0008599]
[1732376314338,0.1324,98469.0,98431.0,0.15]
[1732376314577,0.10302959,98468.0,98431.0,0.15]
[1732376314803,0.1324,98466.0,98431.0,0.15]
[1732376315044,0.1324,98464.0,98431.0,0.15]
[1732376315259,0.10201427,98463.0,98446.0,0.04209323]
[1732376315711,0.1324,98462.0,98446.0,0.0008602]
[1732376318504,0.1324,98460.0,98446.0,0.0008602]
[1732376318777,0.1324,98458.0,98446.0,0.0008602]
[1732376318986,0.23542959,98457.0,98446.0,0.0008602]
[1732376319235,0.10302959,98457.0,98446.0,0.0008602]
[1732376319474,0.1324,98454.0,98446.0,0.0008602]
[1732376319715,0.1324,98452.0,98446.0,0.0008602]
[1732376320194,0.0496,98451.0,98417.0,0.09639909]
[1732376320410,0.0496,98451.0,98418.0,0.27501427]
[1732376321368,0.0927769,98452.0,98419.0,0.0478]
[1732376321597,0.0927769,98452.0,98421.0,0.15]
[1732376321823,0.0927769,98452.0,98423.0,0.15]
[1732376322019,0.0927769,98452.0,98423.0,0.25201427]
[1732376323443,0.0927769,98452.0,98424.0,0.1272]
[1732376323671,0.0927769,98452.0,98426.0,0.0478]
[1732376324405,0.0473,98451.0,98426.0,0.0478]
[1732376325550,0.0927769,98452.0,98426.0,0.0478]
[1732376325768,0.06430697,98452.0,98426.0,0.0478]
[1732376326012,0.05310709,98452.0,98426.0,0.0478]
[1732376328555,0.05310709,98452.0,98426.0,0.0486603]
[1732376333465,0.05310709,98452.0,98427.0,0.023]
[1732376335783,0.05310709,98452.0,98433.0,0.15]
[1732376336024,0.05310709,98452.0,98447.0,0.15]
[1732376336514,0.04313019,98452.0,98447.0,0.68636126]
[1732376336736,0.04313019,98452.0,98447.0,0.15]
[1732376336964,0.04313019,98452.0,98427.0,0.023]
[1732376338376,0.0459,98451.0,98427.0,0.023]
[1732376339084,0.0459,98451.0,98447.0,0.15]
[1732376339594,0.0459,98451.0,98447.0,0.41120653]
[1732376339820,0.0459,98451.0,98427.0,0.023]
[1732376340508,0.30260111,98450.0,98426.0,0.0486603]
[1732376340735,0.0459,98449.0,98426.0,0.0486603]
[1732376340950,0.18281427,98448.0,98426.0,0.0486603]
[1732376342392,0.0459,98447.0,98426.0,0.0486603]
[1732376342611,0.10201427,98446.0,98426.0,0.0486603]
[1732376343298,0.10201427,98446.0,98426.0,0.04148308]
[1732376343520,0.0459,98443.0,98426.0,0.04148308]
[1732376343726,0.0459,98441.0,98426.0,0.04148308]
[1732376344438,0.10201427,98446.0,98426.0,0.04148308]
[1732376344439,0.0461,98439.0,98426.0,0.04148308]
[1732376350394,0.0452,98437.0,98426.0,0.04148308]
[1732376350640,0.10302959,98436.0,98426.0,0.04148308]
[1732376351122,0.0765,98435.0,98426.0,0.04148308]
[1732376351347,0.1217,98433.0,98426.0,0.04148308]
[1732376351566,0.10201427,98432.0,98426.0,0.04148308]
[1732376351797,0.0452,98431.0,98392.0,0.1738604]
[1732376352037,0.0452,98431.0,98404.0,0.023]
[1732376352277,0.0452,98431.0,98427.0,0.040561]
[1732376352503,0.0765,98430.0,98427.0,0.040561]
[1732376354629,0.06921858,98430.0,98427.0,0.03944423]
[1732376354856,0.06921858,98430.0,98427.0,0.03771767]
[1732376355794,0.0452,98429.0,98427.0,0.03771767]
[1732376357593,0.0777,98428.0,98427.0,0.03771767]
[1732376357825,0.1256,98428.0,98427.0,0.03771767]
[1732376358741,0.12099038,98428.0,98427.0,0.03771767]
[1732376359207,0.22300465,98428.0,98427.0,0.07855758]
[1732376359431,0.42300465,98428.0,98427.0,0.04083991]
[1732376359657,0.2,98427.0,98426.0,0.001721]
[1732376359851,0.2,98431.0,98426.0,0.001721]
[1732376360107,0.30201427,98431.0,98426.0,0.001721]
[1732376360331,0.2,98427.0,98426.0,0.001721]
[1732376360545,0.30201427,98427.0,98426.0,0.001721]
[1732376361912,0.37971427,98427.0,98426.0,0.001721]
[1732376362815,0.42761427,98427.0,98426.0,0.001721]
[1732376363750,0.42761427,98427.0,98426.0,0.0432437]
[1732376363973,0.42761427,98427.0,98426.0,0.001721]
[1732376367682,0.42761427,98427.0,98426.0,0.04256295]
[1732376367897,0.42761427,98427.0,98426.0,0.001721]
[1732376372550,0.42761427,98427.0,98426.0,0.04365362]
[1732376372807,0.42761427,98427.0,98426.0,0.001721]
[1732376374241,0.42961427,98427.0,98426.0,0.001721]
[1732376374468,0.42761427,98427.0,98426.0,0.001721]
[1732376375187,0.003379,98420.0,98397.0,0.15]
[1732376375419,0.0787,98415.0,98397.0,0.15]
[1732376375660,0.0483,98414.0,98396.0,0.04057]
[1732376376327,0.0483,98412.0,98396.0,0.04057]
[1732376376574,0.0483,98412.0,98396.0,0.08263015]
[1732376376799,0.0483,98412.0,98396.0,0.04057]
[1732376379791,0.30201427,98411.0,98397.0,0.0017214]
[1732376380032,0.0783,98410.0,98397.0,0.0017214]
[1732376380277,0.0462,98409.0,98397.0,0.0017214]
[1732376386424,0.0099028,98417.0,98397.0,0.0017214]
[1732376386425,0.01472524,98416.0,98398.0,0.02379039]
[1732376386663,0.0099028,98417.0,98399.0,0.0478]
[1732376386942,0.0832,98418.0,98399.0,0.0478]
[1732376387859,0.0452,98417.0,98396.0,0.07836278]
[1732376390383,0.10201427,98416.0,98396.0,0.07836278]
[1732376390654,0.0499,98415.0,98414.0,0.15]
[1732376390881,0.0499,98415.0,98396.0,0.07836278]
[1732376392973,0.0499,98415.0,98396.0,0.08008418]
[1732376394624,0.0499,98415.0,98388.0,0.00586218]
[1732376394850,0.0499,98415.0,98397.0,0.04057]
[1732376396713,0.1314,98404.0,98397.0,0.04057]